[Event "*** SCC Grand Prix: Titled Tuesday Blitz"]
[Site "Chess.com"]
[Date "2020.08.25"]
[Round "10"]
[White "ChelsieMonica"]
[Black "GelmanAlexander"]
[Result "1-0"]
[WhiteElo "2411"]
[BlackElo "2531"]
[TimeControl "180+1"]
[EndTime "11:59:33 PDT"]
[Termination "ChelsieMonica won by resignation"]

1. c4 {[%clk 0:03:00.9]} 1... c5 {[%clk 0:02:58.6]} 2. Nc3 {[%clk 0:03:00.8]}
2... Nf6 {[%clk 0:02:58]} 3. Nf3 {[%clk 0:03:00.4]} 3... e6 {[%clk 0:02:57.9]}
4. e3 {[%clk 0:02:59.5]} 4... d6 {[%clk 0:02:56.8]} 5. d4 {[%clk 0:02:59.4]}
5... Nbd7 {[%clk 0:02:57.1]} 6. Be2 {[%clk 0:02:58.7]} 6... b6 {[%clk
0:02:57.5]} 7. O-O {[%clk 0:02:58.7]} 7... Bb7 {[%clk 0:02:57.9]} 8. d5 {[%clk
0:02:58.8]} 8... exd5 {[%clk 0:02:55.4]} 9. cxd5 {[%clk 0:02:59.7]} 9... g6
{[%clk 0:02:54.8]} 10. e4 {[%clk 0:02:59.5]} 10... Bg7 {[%clk 0:02:55]} 11. Bg5
{[%clk 0:02:59.6]} 11... h6 {[%clk 0:02:54.5]} 12. Bf4 {[%clk 0:02:59.3]} 12...
Qb8 {[%clk 0:02:40.4]} 13. Nb5 {[%clk 0:02:58.8]} 13... Bf8 {[%clk 0:02:40.6]}
14. e5 {[%clk 0:02:47.7]} 14... Nxd5 {[%clk 0:02:40.1]} 15. exd6 {[%clk
0:02:43.8]} 15... Nxf4 {[%clk 0:02:36.4]} 16. Nc7+ {[%clk 0:02:39.4]} 16... Kd8
{[%clk 0:02:36.9]} 17. Nxa8 {[%clk 0:02:29.8]} 17... Qxa8 {[%clk 0:02:34.8]} 18.
Re1 {[%clk 0:02:27.3]} 18... Bg7 {[%clk 0:02:22.7]} 19. Qb3 {[%clk 0:02:10.7]}
19... Nxe2+ {[%clk 0:02:04]} 20. Rxe2 {[%clk 0:02:10.4]} 20... Bxf3 {[%clk
0:02:04.4]} 21. gxf3 {[%clk 0:02:10]} 21... Ne5 {[%clk 0:02:01]} 22. Kg2 {[%clk
0:02:05.5]} 22... Qc6 {[%clk 0:01:48.8]} 23. Rae1 {[%clk 0:02:01.1]} 23... Re8
{[%clk 0:01:42.7]} 24. Kg3 {[%clk 0:01:53.7]} 24... g5 {[%clk 0:01:36.3]} 25. h4
{[%clk 0:01:42.2]} 25... Re6 {[%clk 0:01:21.4]} 26. hxg5 {[%clk 0:01:41.6]}
26... hxg5 {[%clk 0:01:22.3]} 27. Re4 {[%clk 0:01:37.8]} 27... f5 {[%clk
0:01:10.7]} 28. Qxe6 {[%clk 0:01:36.1]} 28... fxe4 {[%clk 0:01:07.6]} 29. Qg8+
{[%clk 0:01:30.7]} 29... Kd7 {[%clk 0:01:07.4]} 30. Qxg7+ {[%clk 0:01:30.2]}
30... Kxd6 {[%clk 0:01:07.9]} 31. Qf6+ {[%clk 0:01:25.9]} 31... Kd5 {[%clk
0:01:03.2]} 32. Rd1+ {[%clk 0:01:20.2]} 32... Kc4 {[%clk 0:00:57.2]} 33. Qxe5
{[%clk 0:01:19.7]} 33... exf3 {[%clk 0:00:56.1]} 34. Rc1+ {[%clk 0:01:08.2]}
34... Kb5 {[%clk 0:00:55.6]} 35. a4+ {[%clk 0:01:07]} 35... Kxa4 {[%clk
0:00:54.4]} 36. Ra1+ {[%clk 0:01:06.3]} 36... Kb5 {[%clk 0:00:54.4]} 37. Qxg5
{[%clk 0:01:04.3]} 37... a5 {[%clk 0:00:50.8]} 38. Qe3 {[%clk 0:01:01.5]} 38...
Ka6 {[%clk 0:00:48.8]} 39. Qxf3 {[%clk 0:01:01.7]} 39... Qg6+ {[%clk 0:00:48.4]}
40. Qg4 {[%clk 0:01:01.9]} 40... Qd3+ {[%clk 0:00:48.5]} 41. f3 {[%clk
0:01:02.3]} 41... c4 {[%clk 0:00:46.5]} 42. Rh1 {[%clk 0:01:00.3]} 42... a4
{[%clk 0:00:45.3]} 43. Rh5 {[%clk 0:00:58.7]} 43... Qc2 {[%clk 0:00:40.8]} 44.
Rh4 {[%clk 0:00:57.3]} 44... b5 {[%clk 0:00:39.5]} 45. Qc8+ {[%clk 0:00:54.3]}
45... Ka5 {[%clk 0:00:39.5]} 46. Qc7+ {[%clk 0:00:53.4]} 46... Kb4 {[%clk
0:00:39.2]} 47. Qd6+ {[%clk 0:00:53.1]} 47... Ka5 {[%clk 0:00:39.4]} 48. Rh2
{[%clk 0:00:46.4]} 48... Qc1 {[%clk 0:00:36.5]} 49. Qd2+ {[%clk 0:00:45.6]}
49... Qxd2 {[%clk 0:00:36]} 50. Rxd2 {[%clk 0:00:46.5]} 50... b4 {[%clk
0:00:36.7]} 51. f4 {[%clk 0:00:46.9]} 51... c3 {[%clk 0:00:37.1]} 52. bxc3
{[%clk 0:00:47.8]} 52... bxc3 {[%clk 0:00:38]} 53. Rf2 {[%clk 0:00:44.9]} 53...
Kb4 {[%clk 0:00:38.6]} 54. f5 {[%clk 0:00:45.4]} 54... a3 {[%clk 0:00:39.3]} 55.
f6 {[%clk 0:00:46.1]} 55... Kb3 {[%clk 0:00:40]} 56. f7 {[%clk 0:00:46.2]} 56...
c2 {[%clk 0:00:39.2]} 57. Rf1 {[%clk 0:00:43.8]} 57... Kb2 {[%clk 0:00:37.7]}
58. f8=Q {[%clk 0:00:43.7]} 1-0

[Event "*** SCC Grand Prix: Titled Tuesday Blitz"]
[Site "Chess.com"]
[Date "2020.08.25"]
[Round "10"]
[White "Beltraxtor"]
[Black "MFBerna"]
[Result "1-0"]
[WhiteElo "2552"]
[BlackElo "2443"]
[TimeControl "180+1"]
[EndTime "11:59:37 PDT"]
[Termination "Beltraxtor won on time"]

1. e4 {[%clk 0:02:59]} 1... c5 {[%clk 0:02:59]} 2. Nf3 {[%clk 0:02:55.9]} 2...
d6 {[%clk 0:02:58.6]} 3. Bb5+ {[%clk 0:02:56.5]} 3... Bd7 {[%clk 0:02:58.2]} 4.
Bxd7+ {[%clk 0:02:55.6]} 4... Qxd7 {[%clk 0:02:59.1]} 5. c4 {[%clk 0:02:56.2]}
5... Nc6 {[%clk 0:02:59.2]} 6. Nc3 {[%clk 0:02:54.5]} 6... g6 {[%clk 0:02:58.8]}
7. d4 {[%clk 0:02:54.7]} 7... cxd4 {[%clk 0:02:58.3]} 8. Nxd4 {[%clk 0:02:54.3]}
8... Bg7 {[%clk 0:02:58.5]} 9. Be3 {[%clk 0:02:54.7]} 9... Nf6 {[%clk
0:02:58.5]} 10. f3 {[%clk 0:02:55.4]} 10... O-O {[%clk 0:02:58.5]} 11. O-O
{[%clk 0:02:53.9]} 11... Rac8 {[%clk 0:02:58.8]} 12. b3 {[%clk 0:02:45.3]} 12...
Rfd8 {[%clk 0:02:56.5]} 13. Qd3 {[%clk 0:02:42]} 13... Nxd4 {[%clk 0:02:47.8]}
14. Bxd4 {[%clk 0:02:39.5]} 14... a6 {[%clk 0:02:40.2]} 15. Rad1 {[%clk
0:02:33.4]} 15... Qc6 {[%clk 0:02:40]} 16. a4 {[%clk 0:02:29.8]} 16... e6 {[%clk
0:02:36.7]} 17. Rf2 {[%clk 0:02:21.8]} 17... Ne8 {[%clk 0:02:07.8]} 18. Rfd2
{[%clk 0:02:13.9]} 18... Bxd4+ {[%clk 0:02:03.1]} 19. Qxd4 {[%clk 0:02:14.8]}
19... Qc5 {[%clk 0:01:51.9]} 20. Kf2 {[%clk 0:02:08]} 20... Kf8 {[%clk
0:01:51.2]} 21. Ke2 {[%clk 0:01:58]} 21... Qxd4 {[%clk 0:01:50.4]} 22. Rxd4
{[%clk 0:01:58.9]} 22... Ke7 {[%clk 0:01:50.8]} 23. g4 {[%clk 0:01:56.1]} 23...
Nf6 {[%clk 0:01:45.1]} 24. h4 {[%clk 0:01:52.8]} 24... h6 {[%clk 0:01:43]} 25.
Ke3 {[%clk 0:01:43.4]} 25... Ne8 {[%clk 0:01:36.9]} 26. g5 {[%clk 0:01:39.5]}
26... Rc5 {[%clk 0:01:25.2]} 27. f4 {[%clk 0:01:36.9]} 27... h5 {[%clk
0:01:21.3]} 28. e5 {[%clk 0:01:32.1]} 28... Rcc8 {[%clk 0:01:16.8]} 29. Ne4
{[%clk 0:01:28.4]} 29... dxe5 {[%clk 0:01:16.8]} 30. fxe5 {[%clk 0:01:28.2]}
30... Rxd4 {[%clk 0:01:14.5]} 31. Rxd4 {[%clk 0:01:29.1]} 31... a5 {[%clk
0:00:53.2]} 32. Nd6 {[%clk 0:01:24.2]} 32... Nxd6 {[%clk 0:00:49.7]} 33. Rxd6
{[%clk 0:01:22.1]} 33... Rc7 {[%clk 0:00:29.6]} 34. Kd4 {[%clk 0:01:20.1]} 34...
Rc8 {[%clk 0:00:27.9]} 35. c5 {[%clk 0:01:17.8]} 35... Rc7 {[%clk 0:00:11.9]}
36. Kc4 {[%clk 0:01:16.9]} 36... Rc8 {[%clk 0:00:12.3]} 37. Kb5 {[%clk
0:01:16.9]} 37... Rc7 {[%clk 0:00:12.9]} 38. Kb6 {[%clk 0:01:16.3]} 38... Rc8
{[%clk 0:00:12.9]} 39. Kb5 {[%clk 0:01:09.6]} 39... Rc7 {[%clk 0:00:12.7]} 40.
Rd4 {[%clk 0:01:09.4]} 40... Rc8 {[%clk 0:00:09.7]} 41. Rd3 {[%clk 0:01:03.8]}
41... Rc7 {[%clk 0:00:09.6]} 42. Rc3 {[%clk 0:01:03.1]} 42... Rd7 {[%clk
0:00:08.2]} 43. Kxa5 {[%clk 0:01:00.6]} 43... Rd4 {[%clk 0:00:06.6]} 44. Rc4
{[%clk 0:00:58.9]} 44... Rd5 {[%clk 0:00:02.6]} 45. Kb6 {[%clk 0:00:58.5]} 45...
Rxe5 {[%clk 0:00:02.9]} 46. Kxb7 {[%clk 0:00:59.2]} 46... Re3 {[%clk 0:00:03.4]}
47. b4 {[%clk 0:00:59.6]} 47... Ra3 {[%clk 0:00:02.6]} 48. c6 {[%clk 0:00:59.6]}
48... Rxa4 {[%clk 0:00:01.8]} 49. c7 {[%clk 0:01:00.2]} 49... Rxb4+ {[%clk
0:00:01.7]} 50. Rxb4 {[%clk 0:01:00.2]} 1-0

[Event "*** SCC Grand Prix: Titled Tuesday Blitz"]
[Site "Chess.com"]
[Date "2020.08.25"]
[Round "10"]
[White "SlavenPastar"]
[Black "alfiefischer77"]
[Result "1-0"]
[WhiteElo "2441"]
[BlackElo "2308"]
[TimeControl "180+1"]
[EndTime "11:59:38 PDT"]
[Termination "SlavenPastar won by resignation"]

1. d4 {[%clk 0:02:58.4]} 1... Nf6 {[%clk 0:02:59.7]} 2. c4 {[%clk 0:02:57.5]}
2... e6 {[%clk 0:02:55.6]} 3. Nc3 {[%clk 0:02:55.5]} 3... Bb4 {[%clk 0:02:55.8]}
4. e3 {[%clk 0:02:55.8]} 4... c5 {[%clk 0:02:55.4]} 5. Bd3 {[%clk 0:02:56.1]}
5... Nc6 {[%clk 0:02:53.5]} 6. Ne2 {[%clk 0:02:56.2]} 6... cxd4 {[%clk
0:02:51.9]} 7. exd4 {[%clk 0:02:57.1]} 7... d5 {[%clk 0:02:52.1]} 8. cxd5 {[%clk
0:02:57]} 8... Nxd5 {[%clk 0:02:51.1]} 9. O-O {[%clk 0:02:57.3]} 9... O-O {[%clk
0:02:50.2]} 10. a3 {[%clk 0:02:52.5]} 10... Bd6 {[%clk 0:02:44.6]} 11. Bc2
{[%clk 0:02:49.3]} 11... Qh4 {[%clk 0:02:25.4]} 12. g3 {[%clk 0:02:43.4]} 12...
Qh3 {[%clk 0:02:25.2]} 13. Qd3 {[%clk 0:02:43.5]} 13... Re8 {[%clk 0:01:46.1]}
14. Nxd5 {[%clk 0:02:35.5]} 14... exd5 {[%clk 0:01:44.6]} 15. Bf4 {[%clk
0:02:34.3]} 15... Bf8 {[%clk 0:01:09.5]} 16. Rae1 {[%clk 0:02:29]} 16... Bg4
{[%clk 0:01:01]} 17. f3 {[%clk 0:02:27.8]} 17... Bh5 {[%clk 0:01:00.6]} 18. Qd2
{[%clk 0:02:18.7]} 18... Bg6 {[%clk 0:00:57.4]} 19. Bxg6 {[%clk 0:02:17.9]}
19... hxg6 {[%clk 0:00:57.2]} 20. g4 {[%clk 0:02:14.6]} 20... Rad8 {[%clk
0:00:50.1]} 21. Bg5 {[%clk 0:02:05]} 21... Be7 {[%clk 0:00:39.5]} 22. Bxe7
{[%clk 0:02:00.3]} 22... Rxe7 {[%clk 0:00:36.2]} 23. Qg5 {[%clk 0:01:55.6]}
23... Qh6 {[%clk 0:00:32]} 24. Qxh6 {[%clk 0:01:46.6]} 24... gxh6 {[%clk
0:00:32.9]} 25. Kf2 {[%clk 0:01:44.7]} 25... Kg7 {[%clk 0:00:32.2]} 26. Nc3
{[%clk 0:01:38.7]} 26... Rxe1 {[%clk 0:00:29.7]} 27. Rxe1 {[%clk 0:01:39.6]}
27... Rd7 {[%clk 0:00:28.1]} 28. Rd1 {[%clk 0:01:33.2]} 28... Kf6 {[%clk
0:00:27.7]} 29. Ke3 {[%clk 0:01:27.6]} 29... Ke6 {[%clk 0:00:27.1]} 30. Kd3
{[%clk 0:01:28.2]} 30... a6 {[%clk 0:00:25.6]} 31. Na4 {[%clk 0:01:26.7]} 31...
Kd6 {[%clk 0:00:22.4]} 32. Re1 {[%clk 0:01:27.1]} 32... Re7 {[%clk 0:00:18.7]}
33. Rxe7 {[%clk 0:01:23.1]} 33... Nxe7 {[%clk 0:00:17.5]} 34. Nc5 {[%clk
0:01:22.2]} 34... Kc6 {[%clk 0:00:16.8]} 35. Ke3 {[%clk 0:01:19.7]} 35... Nc8
{[%clk 0:00:16.2]} 36. Nd3 {[%clk 0:01:18.1]} 36... Kd6 {[%clk 0:00:12.7]} 37.
h4 {[%clk 0:01:14]} 37... Nb6 {[%clk 0:00:11.1]} 38. b3 {[%clk 0:01:14.3]} 38...
Nd7 {[%clk 0:00:09.9]} 39. Kf4 {[%clk 0:01:09.5]} 39... Nb8 {[%clk 0:00:09.4]}
40. Nc5 {[%clk 0:01:07.3]} 40... Nc6 {[%clk 0:00:06.8]} 41. Nxb7+ {[%clk
0:01:06]} 41... Kc7 {[%clk 0:00:06.9]} 42. Nc5 {[%clk 0:01:06.5]} 42... Nxd4
{[%clk 0:00:07.1]} 43. Ke3 {[%clk 0:01:01.1]} 43... Nb5 {[%clk 0:00:03.8]} 44.
a4 {[%clk 0:00:57]} 44... Nc3 {[%clk 0:00:01.6]} 45. Nxa6+ {[%clk 0:00:54.6]}
45... Kb6 {[%clk 0:00:02.2]} 46. Nb4 {[%clk 0:00:53.8]} 46... Kc5 {[%clk
0:00:02.5]} 47. Nd3+ {[%clk 0:00:54.3]} 47... Kd6 {[%clk 0:00:03]} 48. h5 {[%clk
0:00:51]} 48... Nb5 {[%clk 0:00:03]} 49. axb5 {[%clk 0:00:50.7]} 1-0

[Event "*** SCC Grand Prix: Titled Tuesday Blitz"]
[Site "Chess.com"]
[Date "2020.08.25"]
[Round "10"]
[White "Gareth-Bale11"]
[Black "Korchmar_Vasiliy"]
[Result "1-0"]
[WhiteElo "2745"]
[BlackElo "2609"]
[TimeControl "180+1"]
[EndTime "11:59:39 PDT"]
[Termination "Gareth-Bale11 won by resignation"]

1. e4 {[%clk 0:03:00.9]} 1... c5 {[%clk 0:02:59.4]} 2. Nf3 {[%clk 0:03:01]} 2...
d6 {[%clk 0:02:59.5]} 3. d4 {[%clk 0:03:01.2]} 3... cxd4 {[%clk 0:03:00.4]} 4.
Nxd4 {[%clk 0:03:01.6]} 4... Nf6 {[%clk 0:03:01]} 5. Nc3 {[%clk 0:03:02.2]} 5...
Nc6 {[%clk 0:03:01.3]} 6. Bg5 {[%clk 0:03:01.7]} 6... e6 {[%clk 0:03:01.4]} 7.
Qd2 {[%clk 0:03:00.7]} 7... a6 {[%clk 0:03:01.8]} 8. O-O-O {[%clk 0:03:00.1]}
8... h6 {[%clk 0:03:02.4]} 9. Bh4 {[%clk 0:02:49.2]} 9... Nxe4 {[%clk
0:03:01.5]} 10. Nxe4 {[%clk 0:02:39.4]} 10... Qxh4 {[%clk 0:02:59]} 11. Nxc6
{[%clk 0:02:12.8]} 11... Qxe4 {[%clk 0:02:57.7]} 12. Na5 {[%clk 0:02:08.1]}
12... Be7 {[%clk 0:02:56.1]} 13. Bd3 {[%clk 0:02:07.2]} 13... Qe5 {[%clk
0:02:06.8]} 14. f4 {[%clk 0:02:01.8]} 14... Qc5 {[%clk 0:02:02.9]} 15. Nb3
{[%clk 0:01:59.8]} 15... Qc7 {[%clk 0:01:56.5]} 16. Kb1 {[%clk 0:01:59.8]} 16...
Bf6 {[%clk 0:01:51.1]} 17. g4 {[%clk 0:01:58.9]} 17... Bd7 {[%clk 0:01:31.7]}
18. h4 {[%clk 0:01:58.3]} 18... Bc6 {[%clk 0:01:28.9]} 19. Rhg1 {[%clk
0:01:42.1]} 19... Bxh4 {[%clk 0:01:27]} 20. g5 {[%clk 0:01:41.3]} 20... hxg5
{[%clk 0:01:24.2]} 21. fxg5 {[%clk 0:01:42.2]} 21... O-O-O {[%clk 0:01:19.4]}
22. Nd4 {[%clk 0:01:42.2]} 22... Bd7 {[%clk 0:01:11.6]} 23. Qe3 {[%clk 0:01:22]}
23... Kb8 {[%clk 0:01:10.6]} 24. Rdf1 {[%clk 0:01:12]} 24... Be8 {[%clk
0:01:05.5]} 25. g6 {[%clk 0:00:57.3]} 25... e5 {[%clk 0:00:58.1]} 26. gxf7
{[%clk 0:00:48.8]} 26... Bxf7 {[%clk 0:00:59]} 27. Rxg7 {[%clk 0:00:43.8]} 27...
exd4 {[%clk 0:00:45.6]} 28. Qxd4 {[%clk 0:00:44.7]} 28... Bxa2+ {[%clk 0:00:15]}
29. Kxa2 {[%clk 0:00:42.9]} 29... Qa5+ {[%clk 0:00:13.5]} 30. Kb1 {[%clk
0:00:21.2]} 30... Qe5 {[%clk 0:00:13.6]} 31. Qxe5 {[%clk 0:00:17.8]} 31... dxe5
{[%clk 0:00:14.5]} 32. Rff7 {[%clk 0:00:18.2]} 32... Rd6 {[%clk 0:00:05.6]} 33.
Rxb7+ {[%clk 0:00:18]} 33... Kc8 {[%clk 0:00:06.1]} 34. Bf5+ {[%clk 0:00:17.8]}
1-0

[Event "*** SCC Grand Prix: Titled Tuesday Blitz"]
[Site "Chess.com"]
[Date "2020.08.25"]
[Round "10"]
[White "elohunter1999"]
[Black "blitzking1729"]
[Result "0-1"]
[WhiteElo "2476"]
[BlackElo "2682"]
[TimeControl "180+1"]
[EndTime "11:59:39 PDT"]
[Termination "blitzking1729 won by resignation"]

1. e4 {[%clk 0:03:00.9]} 1... g6 {[%clk 0:02:58.7]} 2. d4 {[%clk 0:03:00.5]}
2... Bg7 {[%clk 0:02:58.3]} 3. Nc3 {[%clk 0:03:01]} 3... d6 {[%clk 0:02:58.6]}
4. f4 {[%clk 0:03:01.3]} 4... e6 {[%clk 0:02:58.8]} 5. Nf3 {[%clk 0:03:00.9]}
5... Ne7 {[%clk 0:02:59]} 6. Be3 {[%clk 0:02:55.6]} 6... a6 {[%clk 0:02:59.1]}
7. Bd3 {[%clk 0:02:48.2]} 7... b5 {[%clk 0:02:58.6]} 8. Qd2 {[%clk 0:02:46.4]}
8... Bb7 {[%clk 0:02:57.1]} 9. O-O-O {[%clk 0:02:44.4]} 9... Nd7 {[%clk
0:02:56.8]} 10. Kb1 {[%clk 0:02:40.7]} 10... c5 {[%clk 0:02:36.7]} 11. dxc5
{[%clk 0:02:29.4]} 11... Nxc5 {[%clk 0:02:17.9]} 12. a3 {[%clk 0:02:28.1]} 12...
O-O {[%clk 0:02:08.5]} 13. Bxc5 {[%clk 0:02:09.3]} 13... dxc5 {[%clk 0:02:06.8]}
14. e5 {[%clk 0:02:09.8]} 14... b4 {[%clk 0:01:51.7]} 15. axb4 {[%clk
0:01:55.7]} 15... cxb4 {[%clk 0:01:50.3]} 16. Ne4 {[%clk 0:01:56.2]} 16... Nd5
{[%clk 0:01:45.6]} 17. Bc4 {[%clk 0:01:48.6]} 17... Qa5 {[%clk 0:01:37.1]} 18.
Bb3 {[%clk 0:01:35.5]} 18... Rab8 {[%clk 0:01:32.7]} 19. Nd6 {[%clk 0:01:33.1]}
19... Bc6 {[%clk 0:01:31.1]} 20. Nd4 {[%clk 0:01:31.4]} 20... Ba4 {[%clk
0:01:25.9]} 21. h4 {[%clk 0:01:16.4]} 21... h5 {[%clk 0:01:21.3]} 22. g4 {[%clk
0:01:16.4]} 22... hxg4 {[%clk 0:00:44.8]} 23. h5 {[%clk 0:01:16.5]} 23... Nc3+
{[%clk 0:00:43.6]} 24. bxc3 {[%clk 0:01:10.9]} 24... bxc3 {[%clk 0:00:43.9]} 25.
Qh2 {[%clk 0:00:29.6]} 25... Bxb3 {[%clk 0:00:37.9]} 26. Nxb3 {[%clk 0:00:28.9]}
26... Qa3 {[%clk 0:00:34.6]} 27. Nc4 {[%clk 0:00:20.8]} 27... Rxb3+ {[%clk
0:00:33.7]} 28. cxb3 {[%clk 0:00:21.1]} 28... Qxb3+ {[%clk 0:00:33.8]} 29. Kc1
{[%clk 0:00:20.5]} 29... Rb8 {[%clk 0:00:32.2]} 30. Qc2 {[%clk 0:00:19.3]} 30...
Qxc4 {[%clk 0:00:32]} 31. Rhf1 {[%clk 0:00:16.4]} 31... Bh6 {[%clk 0:00:26.4]}
32. Rd6 {[%clk 0:00:11.4]} 32... Qxf1+ {[%clk 0:00:24.4]} 33. Qd1 {[%clk
0:00:10.8]} 33... Bxf4+ {[%clk 0:00:22.8]} 34. Kc2 {[%clk 0:00:10.7]} 34...
Qxd1+ {[%clk 0:00:22.3]} 35. Rxd1 {[%clk 0:00:11.6]} 35... gxh5 {[%clk
0:00:22.2]} 36. Kxc3 {[%clk 0:00:11.9]} 36... Bxe5+ {[%clk 0:00:22.3]} 37. Kd3
{[%clk 0:00:12.2]} 37... Rd8+ {[%clk 0:00:22.1]} 0-1

[Event "*** SCC Grand Prix: Titled Tuesday Blitz"]
[Site "Chess.com"]
[Date "2020.08.25"]
[Round "10"]
[White "Zarinur"]
[Black "icychess54"]
[Result "0-1"]
[WhiteElo "2134"]
[BlackElo "2239"]
[TimeControl "180+1"]
[EndTime "11:59:40 PDT"]
[Termination "icychess54 won by resignation"]

1. e4 {[%clk 0:03:00.9]} 1... c5 {[%clk 0:02:58.8]} 2. Nf3 {[%clk 0:03:00.5]}
2... d6 {[%clk 0:02:58.7]} 3. Bb5+ {[%clk 0:02:59]} 3... Bd7 {[%clk 0:02:58.3]}
4. Bxd7+ {[%clk 0:02:57.4]} 4... Nxd7 {[%clk 0:02:57.8]} 5. O-O {[%clk
0:02:54.5]} 5... e6 {[%clk 0:02:57.8]} 6. c4 {[%clk 0:02:51.2]} 6... Ngf6 {[%clk
0:02:57.6]} 7. Nc3 {[%clk 0:02:50.8]} 7... Be7 {[%clk 0:02:57.1]} 8. d4 {[%clk
0:02:50.3]} 8... cxd4 {[%clk 0:02:57.1]} 9. Nxd4 {[%clk 0:02:51.2]} 9... O-O
{[%clk 0:02:57.4]} 10. b3 {[%clk 0:02:49.7]} 10... a6 {[%clk 0:02:57.7]} 11. Bb2
{[%clk 0:02:49.6]} 11... Rc8 {[%clk 0:02:57.1]} 12. Re1 {[%clk 0:02:46.7]} 12...
Qa5 {[%clk 0:02:56.6]} 13. Qe2 {[%clk 0:02:16.2]} 13... Qg5 {[%clk 0:02:47.6]}
14. Rad1 {[%clk 0:02:08.4]} 14... Rc7 {[%clk 0:02:40.1]} 15. Nf3 {[%clk
0:02:01.7]} 15... Qh5 {[%clk 0:02:36.5]} 16. Qd2 {[%clk 0:01:20.3]} 16... Rfc8
{[%clk 0:02:22.5]} 17. h3 {[%clk 0:00:49.7]} 17... h6 {[%clk 0:02:02.1]} 18. Qe3
{[%clk 0:00:45.3]} 18... Ne5 {[%clk 0:01:50]} 19. Nxe5 {[%clk 0:00:32.1]} 19...
Qxe5 {[%clk 0:01:49.1]} 20. Rd2 {[%clk 0:00:18.4]} 20... Qg5 {[%clk 0:01:34.3]}
21. f4 {[%clk 0:00:16]} 21... Qh4 {[%clk 0:01:29.7]} 22. Kh1 {[%clk 0:00:10.8]}
22... Nh5 {[%clk 0:01:26.1]} 23. g4 {[%clk 0:00:05.7]} 23... Nxf4 {[%clk
0:01:21.9]} 24. Rh2 {[%clk 0:00:02.5]} 24... Bg5 {[%clk 0:01:15.8]} 25. Rf1
{[%clk 0:00:02.3]} 25... Nh5 {[%clk 0:00:53.7]} 26. Qf3 {[%clk 0:00:02.3]} 26...
Ng3+ {[%clk 0:00:53.7]} 27. Kg2 {[%clk 0:00:02.6]} 27... Nxf1 {[%clk 0:00:53.9]}
28. Qxf1 {[%clk 0:00:03.2]} 28... b5 {[%clk 0:00:52.5]} 29. Qf3 {[%clk
0:00:01.8]} 29... bxc4 {[%clk 0:00:51.6]} 30. bxc4 {[%clk 0:00:02.7]} 30... Rxc4
{[%clk 0:00:51.4]} 31. Kh1 {[%clk 0:00:03.2]} 31... Qe1+ {[%clk 0:00:48.3]} 32.
Kg2 {[%clk 0:00:01.8]} 32... Rxc3 {[%clk 0:00:48.3]} 33. Bxc3 {[%clk 0:00:01.4]}
33... Rxc3 {[%clk 0:00:48.7]} 34. Qf2 {[%clk 0:00:01.8]} 34... Qxe4+ {[%clk
0:00:46.7]} 35. Kg1 {[%clk 0:00:01.5]} 35... Rc1+ {[%clk 0:00:45.5]} 36. Qf1
{[%clk 0:00:01.9]} 36... Be3+ {[%clk 0:00:43.6]} 37. Rf2 {[%clk 0:00:01.9]}
37... Bxf2+ {[%clk 0:00:32.9]} 38. Kxf2 {[%clk 0:00:02]} 38... Qf4+ {[%clk
0:00:32.1]} 39. Ke2 {[%clk 0:00:02.1]} 39... Qxf1+ {[%clk 0:00:30.5]} 40. Kd2
{[%clk 0:00:02.4]} 0-1

[Event "*** SCC Grand Prix: Titled Tuesday Blitz"]
[Site "Chess.com"]
[Date "2020.08.25"]
[Round "10"]
[White "1f3_2g41-0"]
[Black "Nf3c5"]
[Result "0-1"]
[WhiteElo "2445"]
[BlackElo "2556"]
[TimeControl "180+1"]
[EndTime "11:59:41 PDT"]
[Termination "Nf3c5 won by resignation"]

1. e4 {[%clk 0:03:00.9]} 1... c5 {[%clk 0:02:58.8]} 2. Nf3 {[%clk 0:03:01.3]}
2... d6 {[%clk 0:02:58.7]} 3. d4 {[%clk 0:03:01.5]} 3... cxd4 {[%clk 0:02:59.6]}
4. Nxd4 {[%clk 0:03:01.3]} 4... Nf6 {[%clk 0:03:00.1]} 5. Nc3 {[%clk 0:03:01.6]}
5... a6 {[%clk 0:03:00.5]} 6. h3 {[%clk 0:03:01.9]} 6... e5 {[%clk 0:02:59.4]}
7. Nde2 {[%clk 0:03:01.8]} 7... h5 {[%clk 0:02:59.6]} 8. g3 {[%clk 0:03:01.9]}
8... b5 {[%clk 0:02:57.6]} 9. Bg2 {[%clk 0:03:02.1]} 9... Bb7 {[%clk 0:02:58]}
10. Be3 {[%clk 0:02:49.7]} 10... Nbd7 {[%clk 0:02:51.9]} 11. O-O {[%clk
0:02:40]} 11... h4 {[%clk 0:02:44.4]} 12. g4 {[%clk 0:02:38.1]} 12... Be7 {[%clk
0:02:43.1]} 13. a4 {[%clk 0:02:35.5]} 13... b4 {[%clk 0:02:40.3]} 14. Nd5 {[%clk
0:02:36]} 14... Nxd5 {[%clk 0:02:36.1]} 15. exd5 {[%clk 0:02:36.1]} 15... Bg5
{[%clk 0:02:31.4]} 16. Qd2 {[%clk 0:02:26.6]} 16... Bxe3 {[%clk 0:02:13]} 17.
fxe3 {[%clk 0:02:22.7]} 17... a5 {[%clk 0:02:07.7]} 18. Qd3 {[%clk 0:02:12.9]}
18... Ba6 {[%clk 0:02:00]} 19. Qd2 {[%clk 0:02:07.8]} 19... Qg5 {[%clk
0:01:44.2]} 20. Kh1 {[%clk 0:02:03]} 20... g6 {[%clk 0:01:40.7]} 21. Rf2 {[%clk
0:01:54.3]} 21... O-O {[%clk 0:01:37.7]} 22. Ng1 {[%clk 0:01:53.3]} 22... e4
{[%clk 0:01:32]} 23. Bxe4 {[%clk 0:01:51.6]} 23... Rae8 {[%clk 0:01:32.3]} 24.
Qd4 {[%clk 0:01:47]} 24... Nc5 {[%clk 0:01:18.2]} 25. Rf4 {[%clk 0:01:37.5]}
25... Qxf4 {[%clk 0:00:38.5]} 26. exf4 {[%clk 0:01:36]} 26... Rxe4 {[%clk
0:00:39.4]} 27. Qf6 {[%clk 0:01:31.7]} 27... Re3 {[%clk 0:00:32.2]} 28. Qxd6
{[%clk 0:01:26.7]} 28... Rc8 {[%clk 0:00:32.6]} 29. f5 {[%clk 0:01:18.7]} 29...
Bb7 {[%clk 0:00:26.4]} 30. fxg6 {[%clk 0:01:17.9]} 30... Ne4 {[%clk 0:00:24.1]}
31. gxf7+ {[%clk 0:01:17.4]} 31... Kg7 {[%clk 0:00:24.1]} 32. Qe5+ {[%clk
0:01:14.9]} 32... Kh7 {[%clk 0:00:21.1]} 33. Qh5+ {[%clk 0:01:04.7]} 33... Kg7
{[%clk 0:00:20.5]} 34. Qe5+ {[%clk 0:00:55.9]} 34... Kh7 {[%clk 0:00:20.3]} 35.
Qf4 {[%clk 0:00:30.2]} 35... Ng3+ {[%clk 0:00:18.4]} 36. Kg2 {[%clk 0:00:30.3]}
36... Rxc2+ {[%clk 0:00:18.8]} 37. Qf2 {[%clk 0:00:18.3]} 37... Bxd5+ {[%clk
0:00:18.8]} 38. Nf3 {[%clk 0:00:16.3]} 38... Rxf2+ {[%clk 0:00:18.9]} 39. Kg1
{[%clk 0:00:16.9]} 39... Rexf3 {[%clk 0:00:19.4]} 40. f8=Q {[%clk 0:00:16.5]}
40... Rxf8 {[%clk 0:00:18]} 0-1